[Event "Titled Tuesday Blitz August 15 Late 2023"]
[White "dodoucb"]
[Black "Principe, Alexander"]
[BlackFideId "3804542"]
[WhiteElo "2407"]
[BlackElo "2613"]
[Result "1-0"]
[Round "4"]
[TimeControl "180+1"]
[Date "2023.08.15"]
[WhiteClock "0:00:30"]
[BlackClock "0:00:00"]
[Board "67"]

1. d4 {[%clk 0:02:58]}  Nf6 {[%clk 0:02:58]} 2. c4 {[%clk 0:02:59]}  g6 {[%clk 0:02:58]} 3. Nc3 {[%clk 0:02:59]}  Bg7 {[%clk 0:02:59]} 4. e4 {[%clk 0:02:59]}  O-O {[%clk 0:02:59]} 5. Nf3 {[%clk 0:02:59]}  d6 {[%clk 0:03:00]} 6. Be2 {[%clk 0:02:59]}  e5 {[%clk 0:03:00]} 7. O-O {[%clk 0:03:00]}  Nc6 {[%clk 0:02:38]} 8. d5 {[%clk 0:02:58]}  Ne7 {[%clk 0:02:37]} 9. Ne1 {[%clk 0:02:59]}  Nd7 {[%clk 0:02:35]} 10. Nd3 {[%clk 0:02:59]}  c5 {[%clk 0:02:34]} 11. Be3 {[%clk 0:02:54]}  f5 {[%clk 0:02:34]} 12. f3 {[%clk 0:02:55]}  f4 {[%clk 0:02:32]} 13. Bf2 {[%clk 0:02:55]}  g5 {[%clk 0:02:33]} 14. b4 {[%clk 0:02:52]}  b6 {[%clk 0:02:33]} 15. a4 {[%clk 0:02:51]}  Ba6 {[%clk 0:02:17]} 16. Nb5 {[%clk 0:02:47]}  Nf6 {[%clk 0:02:17]} 17. bxc5 {[%clk 0:02:32]}  bxc5 {[%clk 0:02:17]} 18. Rb1 {[%clk 0:02:32]}  Nc8 {[%clk 0:02:07]} 19. Bxc5 {[%clk 0:02:16]}  dxc5 {[%clk 0:02:05]} 20. Kh1 {[%clk 0:02:09]}  Nd7 {[%clk 0:02:02]} 21. Qd2 {[%clk 0:02:02]}  Rf6 {[%clk 0:01:54]} 22. a5 {[%clk 0:02:01]}  Bf8 {[%clk 0:01:50]} 23. Qc3 {[%clk 0:02:00]}  Bxb5 {[%clk 0:01:37]} 24. Rxb5 {[%clk 0:01:58]}  Bd6 {[%clk 0:01:35]} 25. Rfb1 {[%clk 0:01:53]}  h5 {[%clk 0:01:34]} 26. Bd1 {[%clk 0:01:52]}  Rf7 {[%clk 0:01:33]} 27. Ba4 {[%clk 0:01:47]}  Rb8 {[%clk 0:01:13]} 28. Rb7 {[%clk 0:01:41]}  Rxb7 {[%clk 0:01:10]} 29. Rxb7 {[%clk 0:01:42]}  Bc7 {[%clk 0:00:59]} 30. Bxd7 {[%clk 0:01:35]}  Rxd7 {[%clk 0:00:59]} 31. Nxc5 {[%clk 0:01:33]}  Re7 {[%clk 0:00:50]} 32. Qb3 {[%clk 0:01:05]}  Bxa5 {[%clk 0:00:47]} 33. Ne6 {[%clk 0:00:56]}  Rxe6 {[%clk 0:00:13]} 34. dxe6 {[%clk 0:00:53]}  Qd2 {[%clk 0:00:14]} 35. Qb1 {[%clk 0:00:38]}  Nb6 {[%clk 0:00:03]} 36. c5 {[%clk 0:00:34]}  Nc4 {[%clk 0:00:00]} 37. Rd7 {[%clk 0:00:30]} 1-0


[Site "https://www.chess.com"]

[Event "Titled Tuesday Blitz August 15 Late 2023"]
[White "Blackburn, Jonathan L B"]
[Black "Wieczorek, Oskar"]
[WhiteFideId "1801090"]
[BlackFideId "1133950"]
[WhiteElo "2394"]
[BlackElo "2610"]
[Result "0-1"]
[Round "4"]
[TimeControl "180+1"]
[Date "2023.08.15"]
[WhiteClock "0:01:49"]
[BlackClock "0:02:00"]
[Board "68"]

1. d4 {[%clk 0:03:00]}  Nf6 {[%clk 0:02:59]} 2. c4 {[%clk 0:03:01]}  c5 {[%clk 0:02:59]} 3. d5 {[%clk 0:03:01]}  g6 {[%clk 0:02:57]} 4. Nc3 {[%clk 0:03:01]}  Bg7 {[%clk 0:02:56]} 5. e4 {[%clk 0:02:59]}  d6 {[%clk 0:02:57]} 6. h3 {[%clk 0:02:59]}  O-O {[%clk 0:02:56]} 7. Nf3 {[%clk 0:03:00]}  e6 {[%clk 0:02:56]} 8. Bd3 {[%clk 0:03:00]}  Na6 {[%clk 0:02:56]} 9. O-O {[%clk 0:02:57]}  Nc7 {[%clk 0:02:51]} 10. Bg5 {[%clk 0:02:56]}  h6 {[%clk 0:02:48]} 11. Bf4 {[%clk 0:02:50]}  exd5 {[%clk 0:02:47]} 12. exd5 {[%clk 0:02:46]}  b5 {[%clk 0:02:44]} 13. Nxb5 {[%clk 0:02:34]}  Nxb5 {[%clk 0:02:43]} 14. cxb5 {[%clk 0:02:35]}  Nxd5 {[%clk 0:02:44]} 15. Be4 {[%clk 0:02:32]}  Nxf4 {[%clk 0:02:44]} 16. Bxa8 {[%clk 0:02:32]}  Bxh3 {[%clk 0:02:26]} 17. gxh3 {[%clk 0:02:22]}  Qxa8 {[%clk 0:02:22]} 18. Re1 {[%clk 0:02:12]}  Nxh3+ {[%clk 0:02:18]} 19. Kf1 {[%clk 0:02:10]}  Nf4 {[%clk 0:02:12]} 20. Re3 {[%clk 0:02:09]}  Bxb2 {[%clk 0:02:04]} 21. Rb1 {[%clk 0:02:08]}  Be5 {[%clk 0:02:04]} 22. a4 {[%clk 0:02:04]}  Bd4 {[%clk 0:02:02]} 23. Nxd4 {[%clk 0:01:49]}  Qh1# {[%clk 0:02:00]} 0-1


[Site "https://www.chess.com"]

[Event "Titled Tuesday Blitz August 15 Late 2023"]
[White "petr577"]
[Black "Altman, Joshua"]
[BlackFideId "426210"]
[WhiteElo "2386"]
[BlackElo "2606"]
[Result "0-1"]
[Round "4"]
[TimeControl "180+1"]
[Date "2023.08.15"]
[WhiteClock "0:00:03"]
[BlackClock "0:00:19"]
[Board "69"]

1. e4 {[%clk 0:03:00]}  e6 {[%clk 0:02:58]} 2. d4 {[%clk 0:03:00]}  d5 {[%clk 0:02:59]} 3. Nd2 {[%clk 0:03:01]}  Nf6 {[%clk 0:02:58]} 4. e5 {[%clk 0:03:02]}  Nfd7 {[%clk 0:02:59]} 5. Bd3 {[%clk 0:03:02]}  c5 {[%clk 0:02:59]} 6. c3 {[%clk 0:03:03]}  Nc6 {[%clk 0:03:00]} 7. Ngf3 {[%clk 0:03:03]}  Qb6 {[%clk 0:03:00]} 8. O-O {[%clk 0:03:04]}  cxd4 {[%clk 0:03:01]} 9. cxd4 {[%clk 0:03:04]}  Nxd4 {[%clk 0:03:01]} 10. Nxd4 {[%clk 0:03:05]}  Qxd4 {[%clk 0:03:02]} 11. Nf3 {[%clk 0:03:06]}  Qb6 {[%clk 0:03:02]} 12. Qa4 {[%clk 0:03:07]}  Qb4 {[%clk 0:03:03]} 13. Qc2 {[%clk 0:03:07]}  Nc5 {[%clk 0:03:03]} 14. Bd2 {[%clk 0:02:14]}  Qa4 {[%clk 0:03:02]} 15. Qxa4+ {[%clk 0:01:46]}  Nxa4 {[%clk 0:03:03]} 16. Rfc1 {[%clk 0:01:46]}  Nc5 {[%clk 0:02:54]} 17. Bf1 {[%clk 0:01:13]}  Bd7 {[%clk 0:02:52]} 18. Rc2 {[%clk 0:00:58]}  Be7 {[%clk 0:02:39]} 19. Rac1 {[%clk 0:00:58]}  Ne4 {[%clk 0:02:34]} 20. Be3 {[%clk 0:00:56]}  Bd8 {[%clk 0:02:23]} 21. Nd4 {[%clk 0:00:45]}  f6 {[%clk 0:02:03]} 22. f3 {[%clk 0:00:45]}  fxe5 {[%clk 0:02:02]} 23. fxe4 {[%clk 0:00:43]}  exd4 {[%clk 0:02:02]} 24. Bxd4 {[%clk 0:00:44]}  O-O {[%clk 0:01:58]} 25. Bd3 {[%clk 0:00:31]}  Bc6 {[%clk 0:01:48]} 26. e5 {[%clk 0:00:29]}  Bb6 {[%clk 0:01:27]} 27. Bxb6 {[%clk 0:00:28]}  axb6 {[%clk 0:01:28]} 28. a3 {[%clk 0:00:28]}  Rf4 {[%clk 0:01:26]} 29. Rf2 {[%clk 0:00:26]}  Raf8 {[%clk 0:01:23]} 30. Rxf4 {[%clk 0:00:20]}  Rxf4 {[%clk 0:01:24]} 31. g3 {[%clk 0:00:20]}  Rf3 {[%clk 0:01:23]} 32. Bf1 {[%clk 0:00:15]}  Re3 {[%clk 0:01:22]} 33. Kf2 {[%clk 0:00:15]}  Rxe5 {[%clk 0:01:23]} 34. Bh3 {[%clk 0:00:16]}  Kf7 {[%clk 0:01:19]} 35. b4 {[%clk 0:00:16]}  Ke7 {[%clk 0:01:19]} 36. b5 {[%clk 0:00:16]}  Bxb5 {[%clk 0:01:16]} 37. Rc7+ {[%clk 0:00:17]}  Bd7 {[%clk 0:01:14]} 38. Rxb7 {[%clk 0:00:17]}  b5 {[%clk 0:01:14]} 39. Bf1 {[%clk 0:00:16]}  d4 {[%clk 0:01:15]} 40. Bd3 {[%clk 0:00:16]}  h6 {[%clk 0:01:09]} 41. h4 {[%clk 0:00:15]}  Kd6 {[%clk 0:01:09]} 42. Rb6+ {[%clk 0:00:15]}  Kc7 {[%clk 0:01:05]} 43. Ra6 {[%clk 0:00:15]}  Re3 {[%clk 0:01:01]} 44. Be2 {[%clk 0:00:15]}  Rc3 {[%clk 0:00:55]} 45. Ra7+ {[%clk 0:00:14]}  Kd6 {[%clk 0:00:55]} 46. Ra6+ {[%clk 0:00:14]}  Ke5 {[%clk 0:00:37]} 47. Ra7 {[%clk 0:00:13]}  Bc6 {[%clk 0:00:37]} 48. Rxg7 {[%clk 0:00:13]}  d3 {[%clk 0:00:36]} 49. Bd1 {[%clk 0:00:13]}  Rxa3 {[%clk 0:00:35]} 50. Rc7 {[%clk 0:00:12]}  Bd5 {[%clk 0:00:34]} 51. Ke3 {[%clk 0:00:12]}  b4 {[%clk 0:00:33]} 52. g4 {[%clk 0:00:12]}  b3 {[%clk 0:00:21]} 53. Kxd3 {[%clk 0:00:12]}  b2+ {[%clk 0:00:21]} 54. Kc2 {[%clk 0:00:12]}  Rb3 {[%clk 0:00:21]} 55. Kb1 {[%clk 0:00:09]}  Be4+ {[%clk 0:00:21]} 56. Bc2 {[%clk 0:00:09]}  Bxc2+ {[%clk 0:00:20]} 57. Rxc2 {[%clk 0:00:10]}  Kf4 {[%clk 0:00:20]} 58. Rc6 {[%clk 0:00:09]}  Kxg4 {[%clk 0:00:20]} 59. Rxe6 {[%clk 0:00:10]}  h5 {[%clk 0:00:20]} 60. Rg6+ {[%clk 0:00:09]}  Kxh4 {[%clk 0:00:20]} 61. Rg8 {[%clk 0:00:09]}  Kh3 {[%clk 0:00:20]} 62. Rg5 {[%clk 0:00:09]}  h4 {[%clk 0:00:21]} 63. Rg8 {[%clk 0:00:09]}  Kh2 {[%clk 0:00:21]} 64. Rg4 {[%clk 0:00:09]}  h3 {[%clk 0:00:21]} 65. Rg8 {[%clk 0:00:09]}  Kh1 {[%clk 0:00:22]} 66. Rg4 {[%clk 0:00:08]}  h2 {[%clk 0:00:22]} 67. Rg8 {[%clk 0:00:08]}  Rf3 {[%clk 0:00:20]} 68. Kxb2 {[%clk 0:00:07]}  Rf2+ {[%clk 0:00:20]} 69. Kc3 {[%clk 0:00:07]}  Rg2 {[%clk 0:00:21]} 70. Re8 {[%clk 0:00:06]}  Kg1 {[%clk 0:00:21]} 71. Re1+ {[%clk 0:00:06]}  Kf2 {[%clk 0:00:21]} 72. Ra1 {[%clk 0:00:06]}  Rg1 {[%clk 0:00:21]} 73. Ra2+ {[%clk 0:00:06]}  Kg3 {[%clk 0:00:22]} 74. Ra8 {[%clk 0:00:06]}  h1=Q {[%clk 0:00:21]} 75. Rg8+ {[%clk 0:00:06]}  Kf2 {[%clk 0:00:21]} 76. Rf8+ {[%clk 0:00:06]}  Ke3 {[%clk 0:00:19]} 77. Re8+ {[%clk 0:00:05]}  Kf4 {[%clk 0:00:19]} 78. Rf8+ {[%clk 0:00:05]}  Ke5 {[%clk 0:00:20]} 79. Re8+ {[%clk 0:00:05]}  Kd6 {[%clk 0:00:20]} 80. Rd8+ {[%clk 0:00:05]}  Ke7 {[%clk 0:00:21]} 81. Rd2 {[%clk 0:00:05]}  Qf3+ {[%clk 0:00:20]} 82. Kd4 {[%clk 0:00:06]}  Rg4+ {[%clk 0:00:20]} 83. Kc5 {[%clk 0:00:06]}  Qc3+ {[%clk 0:00:20]} 84. Kb5 {[%clk 0:00:03]}  Rb4+ {[%clk 0:00:19]} 0-1


[Site "https://www.chess.com"]

[Event "Titled Tuesday Blitz August 15 Late 2023"]
[White "Polaczek, Richard"]
[Black "Isajevsky, Anton"]
[WhiteFideId "200026"]
[BlackFideId "4142500"]
[WhiteElo "2371"]
[BlackElo "2602"]
[Result "0-1"]
[Round "4"]
[TimeControl "180+1"]
[Date "2023.08.15"]
[WhiteClock "0:00:16"]
[BlackClock "0:00:01"]
[Board "70"]

1. d4 {[%clk 0:02:59]}  Nf6 {[%clk 0:02:55]} 2. c4 {[%clk 0:02:57]}  e6 {[%clk 0:02:54]} 3. Nc3 {[%clk 0:02:57]}  d5 {[%clk 0:02:53]} 4. cxd5 {[%clk 0:02:56]}  exd5 {[%clk 0:02:53]} 5. Bg5 {[%clk 0:02:55]}  c6 {[%clk 0:02:53]} 6. Qc2 {[%clk 0:02:54]}  Be7 {[%clk 0:02:38]} 7. e3 {[%clk 0:02:53]}  Nbd7 {[%clk 0:02:38]} 8. Bd3 {[%clk 0:02:52]}  Nf8 {[%clk 0:02:36]} 9. Nge2 {[%clk 0:02:50]}  Ne6 {[%clk 0:02:13]} 10. Bh4 {[%clk 0:02:48]}  g6 {[%clk 0:02:12]} 11. O-O {[%clk 0:02:44]}  O-O {[%clk 0:02:07]} 12. f3 {[%clk 0:02:42]}  b5 {[%clk 0:02:03]} 13. Rad1 {[%clk 0:02:35]}  Bb7 {[%clk 0:01:57]} 14. h3 {[%clk 0:02:20]}  Rc8 {[%clk 0:01:46]} 15. Bf2 {[%clk 0:02:17]}  b4 {[%clk 0:01:30]} 16. Na4 {[%clk 0:02:16]}  c5 {[%clk 0:01:30]} 17. dxc5 {[%clk 0:02:12]}  Nxc5 {[%clk 0:01:31]} 18. Nxc5 {[%clk 0:02:11]}  Bxc5 {[%clk 0:01:32]} 19. Qd2 {[%clk 0:02:10]}  Qb6 {[%clk 0:01:18]} 20. Nd4 {[%clk 0:02:09]}  Rfe8 {[%clk 0:01:09]} 21. Bc2 {[%clk 0:02:06]}  Nd7 {[%clk 0:01:02]} 22. Ba4 {[%clk 0:02:01]}  Re7 {[%clk 0:01:02]} 23. Bh4 {[%clk 0:01:49]}  Ne5 {[%clk 0:00:59]} 24. Bxe7 {[%clk 0:01:46]}  Bxe7 {[%clk 0:01:00]} 25. b3 {[%clk 0:01:36]}  Ba6 {[%clk 0:00:53]} 26. Rc1 {[%clk 0:01:33]}  Rc3 {[%clk 0:00:43]} 27. Rxc3 {[%clk 0:01:20]}  bxc3 {[%clk 0:00:44]} 28. Qxc3 {[%clk 0:01:20]}  Bb4 {[%clk 0:00:40]} 29. Qc2 {[%clk 0:01:12]}  Bxf1 {[%clk 0:00:25]} 30. Kxf1 {[%clk 0:01:12]}  Bc5 {[%clk 0:00:12]} 31. f4 {[%clk 0:01:03]}  Bxd4 {[%clk 0:00:12]} 32. exd4 {[%clk 0:00:58]}  Qa6+ {[%clk 0:00:12]} 33. Kf2 {[%clk 0:00:48]}  Nd3+ {[%clk 0:00:11]} 34. Ke3 {[%clk 0:00:48]}  Nb4 {[%clk 0:00:11]} 35. Qc5 {[%clk 0:00:44]}  Qd3+ {[%clk 0:00:07]} 36. Kf2 {[%clk 0:00:44]}  Qd2+ {[%clk 0:00:05]} 37. Kg3 {[%clk 0:00:43]}  Nd3 {[%clk 0:00:04]} 38. Qc8+ {[%clk 0:00:42]}  Kg7 {[%clk 0:00:04]} 39. Qc7 {[%clk 0:00:41]}  Qf2+ {[%clk 0:00:02]} 40. Kh2 {[%clk 0:00:41]}  Ne1 {[%clk 0:00:02]} 41. Qe5+ {[%clk 0:00:39]}  f6 {[%clk 0:00:03]} 42. Qe7+ {[%clk 0:00:35]}  Kh6 {[%clk 0:00:03]} 43. Qf8+ {[%clk 0:00:33]}  Kh5 {[%clk 0:00:01]} 44. Qg7 {[%clk 0:00:16]}  Qxg2# {[%clk 0:00:01]} 0-1


[Site "https://www.chess.com"]

[Event "Titled Tuesday Blitz August 15 Late 2023"]
[White "Manukyan, Sargis A."]
[Black "Gerbelli Neto, Eduardo"]
[WhiteFideId "13303970"]
[BlackFideId "2103281"]
[WhiteElo "2590"]
[BlackElo "2346"]
[Result "1-0"]
[Round "4"]
[TimeControl "180+1"]
[Date "2023.08.15"]
[WhiteClock "0:00:10"]
[BlackClock "0:00:01"]
[Board "71"]

1. d4 {[%clk 0:03:00]}  d5 {[%clk 0:02:59]} 2. c4 {[%clk 0:03:01]}  c6 {[%clk 0:02:59]} 3. Nc3 {[%clk 0:03:01]}  Nf6 {[%clk 0:02:59]} 4. e3 {[%clk 0:03:02]}  e6 {[%clk 0:02:59]} 5. Nf3 {[%clk 0:03:03]}  Nbd7 {[%clk 0:02:59]} 6. Bd3 {[%clk 0:03:03]}  dxc4 {[%clk 0:02:59]} 7. Bxc4 {[%clk 0:03:04]}  b5 {[%clk 0:03:00]} 8. Bd3 {[%clk 0:03:04]}  a6 {[%clk 0:03:01]} 9. e4 {[%clk 0:03:04]}  c5 {[%clk 0:03:01]} 10. e5 {[%clk 0:03:04]}  cxd4 {[%clk 0:03:01]} 11. Nxb5 {[%clk 0:03:05]}  axb5 {[%clk 0:03:00]} 12. exf6 {[%clk 0:03:06]}  gxf6 {[%clk 0:02:59]} 13. O-O {[%clk 0:03:06]}  Qb6 {[%clk 0:02:59]} 14. Qe2 {[%clk 0:03:06]}  Bb7 {[%clk 0:02:35]} 15. Rd1 {[%clk 0:03:02]}  Rg8 {[%clk 0:02:35]} 16. g3 {[%clk 0:03:01]}  Qc6 {[%clk 0:02:17]} 17. Kg2 {[%clk 0:02:55]}  Qxf3+ {[%clk 0:02:06]} 18. Qxf3 {[%clk 0:02:53]}  Bxf3+ {[%clk 0:02:07]} 19. Kxf3 {[%clk 0:02:53]}  Ne5+ {[%clk 0:02:06]} 20. Ke2 {[%clk 0:02:54]}  Nxd3 {[%clk 0:02:07]} 21. Kxd3 {[%clk 0:02:47]}  Bc5 {[%clk 0:01:45]} 22. Bd2 {[%clk 0:02:44]}  Ke7 {[%clk 0:01:44]} 23. a3 {[%clk 0:02:43]}  e5 {[%clk 0:01:42]} 24. Rac1 {[%clk 0:02:43]}  Kd6 {[%clk 0:01:36]} 25. Ke4 {[%clk 0:02:37]}  Rac8 {[%clk 0:01:23]} 26. f4 {[%clk 0:02:36]}  Ke6 {[%clk 0:01:18]} 27. f5+ {[%clk 0:02:33]}  Kd6 {[%clk 0:01:18]} 28. b4 {[%clk 0:02:11]}  Bb6 {[%clk 0:01:14]} 29. Rxc8 {[%clk 0:02:12]}  Rxc8 {[%clk 0:01:13]} 30. Rc1 {[%clk 0:02:12]}  Rg8 {[%clk 0:00:47]} 31. Ra1 {[%clk 0:02:06]}  h5 {[%clk 0:00:47]} 32. Kf3 {[%clk 0:02:00]}  Kd5 {[%clk 0:00:46]} 33. Re1 {[%clk 0:01:58]}  Rg4 {[%clk 0:00:44]} 34. h3 {[%clk 0:01:49]}  e4+ {[%clk 0:00:43]} 35. Kg2 {[%clk 0:01:50]}  Rg8 {[%clk 0:00:42]} 36. Bf4 {[%clk 0:01:44]}  Rc8 {[%clk 0:00:41]} 37. g4 {[%clk 0:01:23]}  hxg4 {[%clk 0:00:40]} 38. h4 {[%clk 0:01:24]}  Rc2+ {[%clk 0:00:25]} 39. Kg3 {[%clk 0:01:24]}  e3 {[%clk 0:00:24]} 40. h5 {[%clk 0:01:22]}  Ke4 {[%clk 0:00:23]} 41. h6 {[%clk 0:01:21]}  Bc7 {[%clk 0:00:18]} 42. Bxc7 {[%clk 0:01:12]}  Rxc7 {[%clk 0:00:19]} 43. h7 {[%clk 0:00:57]}  Rc8 {[%clk 0:00:19]} 44. Rh1 {[%clk 0:00:23]}  Rh8 {[%clk 0:00:19]} 45. a4 {[%clk 0:00:17]}  d3 {[%clk 0:00:19]} 46. a5 {[%clk 0:00:14]}  d2 {[%clk 0:00:19]} 47. a6 {[%clk 0:00:14]}  Rxh7 {[%clk 0:00:18]} 48. a7 {[%clk 0:00:12]}  Rh8 {[%clk 0:00:11]} 49. Rxh8 {[%clk 0:00:11]}  e2 {[%clk 0:00:11]} 50. a8=Q+ {[%clk 0:00:11]}  Ke3 {[%clk 0:00:11]} 51. Qa3+ {[%clk 0:00:08]}  Kd4 {[%clk 0:00:11]} 52. Rd8+ {[%clk 0:00:08]}  Kc4 {[%clk 0:00:04]} 53. Qd3+ {[%clk 0:00:09]}  Kxb4 {[%clk 0:00:01]} 54. Qxd2+ {[%clk 0:00:10]} 1-0


[Site "https://www.chess.com"]

[Event "Titled Tuesday Blitz August 15 Late 2023"]
[White "Przybylski, Wojciech"]
[Black "Ouellet, Maili-Jade"]
[WhiteFideId "1117599"]
[BlackFideId "2620472"]
[WhiteElo "2575"]
[BlackElo "2344"]
[Result "1-0"]
[Round "4"]
[TimeControl "180+1"]
[Date "2023.08.15"]
[WhiteClock "0:00:05"]
[BlackClock "0:00:00"]
[Board "72"]

1. d4 {[%clk 0:02:50]}  Nf6 {[%clk 0:02:59]} 2. c4 {[%clk 0:02:50]}  e6 {[%clk 0:02:59]} 3. g3 {[%clk 0:02:50]}  d5 {[%clk 0:02:58]} 4. Bg2 {[%clk 0:02:51]}  Be7 {[%clk 0:02:56]} 5. Nf3 {[%clk 0:02:51]}  O-O {[%clk 0:02:57]} 6. O-O {[%clk 0:02:51]}  dxc4 {[%clk 0:02:56]} 7. Qc2 {[%clk 0:02:51]}  b5 {[%clk 0:02:56]} 8. a4 {[%clk 0:02:51]}  b4 {[%clk 0:02:55]} 9. Qxc4 {[%clk 0:02:49]}  Ba6 {[%clk 0:02:49]} 10. Qc2 {[%clk 0:02:48]}  Nbd7 {[%clk 0:02:18]} 11. Ne5 {[%clk 0:02:34]}  Nxe5 {[%clk 0:02:16]} 12. dxe5 {[%clk 0:02:34]}  Nd5 {[%clk 0:02:14]} 13. Rd1 {[%clk 0:02:33]}  Qc8 {[%clk 0:02:05]} 14. Be4 {[%clk 0:02:07]}  h6 {[%clk 0:02:04]} 15. e3 {[%clk 0:01:43]}  c5 {[%clk 0:02:00]} 16. b3 {[%clk 0:01:41]}  Rd8 {[%clk 0:01:48]} 17. Bb2 {[%clk 0:01:40]}  c4 {[%clk 0:01:40]} 18. bxc4 {[%clk 0:01:35]}  Qxc4 {[%clk 0:01:39]} 19. Qxc4 {[%clk 0:01:33]}  Bxc4 {[%clk 0:01:39]} 20. Nd2 {[%clk 0:01:33]}  Be2 {[%clk 0:01:38]} 21. Re1 {[%clk 0:01:30]}  Ba6 {[%clk 0:01:35]} 22. Nb3 {[%clk 0:01:25]}  Rac8 {[%clk 0:01:33]} 23. Bd4 {[%clk 0:01:19]}  Nc3 {[%clk 0:01:24]} 24. Bf3 {[%clk 0:01:11]}  Rc7 {[%clk 0:01:15]} 25. h4 {[%clk 0:01:06]}  Bc4 {[%clk 0:01:06]} 26. Na5 {[%clk 0:01:01]}  Bd5 {[%clk 0:01:06]} 27. Bg4 {[%clk 0:00:29]}  b3 {[%clk 0:00:38]} 28. e4 {[%clk 0:00:21]}  Nxe4 {[%clk 0:00:19]} 29. Nxb3 {[%clk 0:00:20]}  Nxg3 {[%clk 0:00:12]} 30. Nd2 {[%clk 0:00:13]}  Nf5 {[%clk 0:00:12]} 31. Bxf5 {[%clk 0:00:08]}  exf5 {[%clk 0:00:12]} 32. Be3 {[%clk 0:00:08]}  Bxh4 {[%clk 0:00:12]} 33. Rac1 {[%clk 0:00:07]}  Rdc8 {[%clk 0:00:11]} 34. Rxc7 {[%clk 0:00:07]}  Rxc7 {[%clk 0:00:12]} 35. Rd1 {[%clk 0:00:06]}  Be7 {[%clk 0:00:03]} 36. Nf1 {[%clk 0:00:04]}  Bb3 {[%clk 0:00:03]} 37. Rb1 {[%clk 0:00:04]}  a5 {[%clk 0:00:04]} 38. Rxb3 {[%clk 0:00:03]}  Bb4 {[%clk 0:00:04]} 39. Rd3 {[%clk 0:00:03]}  Rc4 {[%clk 0:00:03]} 40. Rd8+ {[%clk 0:00:03]}  Kh7 {[%clk 0:00:03]} 41. Bd4 {[%clk 0:00:03]}  Rc2 {[%clk 0:00:02]} 42. Rd7 {[%clk 0:00:03]}  Kg6 {[%clk 0:00:02]} 43. e6 {[%clk 0:00:03]}  f6 {[%clk 0:00:01]} 44. Ne3 {[%clk 0:00:03]}  Rc1+ {[%clk 0:00:01]} 45. Kg2 {[%clk 0:00:04]}  Rc8 {[%clk 0:00:02]} 46. e7 {[%clk 0:00:04]}  Re8 {[%clk 0:00:02]} 47. Nd5 {[%clk 0:00:04]}  Ba3 {[%clk 0:00:01]} 48. Rd8 {[%clk 0:00:04]}  Rxe7 {[%clk 0:00:01]} 49. Nxe7+ {[%clk 0:00:05]}  Bxe7 {[%clk 0:00:00]} 50. Rd5 {[%clk 0:00:05]} 1-0


[Site "https://www.chess.com"]

[Event "Titled Tuesday Blitz August 15 Late 2023"]
[White "Boder, Jan"]
[Black "Kochiev, Ivan"]
[WhiteFideId "16243226"]
[BlackFideId "2917890"]
[WhiteElo "2330"]
[BlackElo "2571"]
[Result "0-1"]
[Round "4"]
[TimeControl "180+1"]
[Date "2023.08.15"]
[WhiteClock "0:00:00"]
[BlackClock "0:00:05"]
[Board "73"]

1. c4 {[%clk 0:03:00]}  Nf6 {[%clk 0:02:59]} 2. g3 {[%clk 0:02:59]}  e6 {[%clk 0:02:55]} 3. Bg2 {[%clk 0:02:58]}  Be7 {[%clk 0:02:55]} 4. Nf3 {[%clk 0:02:56]}  O-O {[%clk 0:02:55]} 5. O-O {[%clk 0:02:56]}  d5 {[%clk 0:02:53]} 6. d4 {[%clk 0:02:54]}  c6 {[%clk 0:02:49]} 7. Nc3 {[%clk 0:02:52]}  b6 {[%clk 0:02:49]} 8. b3 {[%clk 0:02:48]}  Bb7 {[%clk 0:02:49]} 9. Bb2 {[%clk 0:02:47]}  Nbd7 {[%clk 0:02:50]} 10. Qd3 {[%clk 0:02:47]}  Rc8 {[%clk 0:02:48]} 11. e4 {[%clk 0:02:41]}  dxe4 {[%clk 0:02:47]} 12. Nxe4 {[%clk 0:02:42]}  c5 {[%clk 0:02:37]} 13. Nxf6+ {[%clk 0:02:19]}  Bxf6 {[%clk 0:02:09]} 14. Ng5 {[%clk 0:02:09]}  Bxg5 {[%clk 0:01:57]} 15. Bxb7 {[%clk 0:02:09]}  Rc7 {[%clk 0:01:56]} 16. Bg2 {[%clk 0:02:06]}  cxd4 {[%clk 0:01:54]} 17. Bxd4 {[%clk 0:01:59]}  Nc5 {[%clk 0:01:47]} 18. Qc3 {[%clk 0:01:59]}  Bf6 {[%clk 0:01:35]} 19. Bxf6 {[%clk 0:01:52]}  Qxf6 {[%clk 0:01:36]} 20. Qxf6 {[%clk 0:01:51]}  gxf6 {[%clk 0:01:37]} 21. Rfd1 {[%clk 0:01:48]}  Rfc8 {[%clk 0:01:30]} 22. Rd4 {[%clk 0:01:47]}  f5 {[%clk 0:01:17]} 23. Rad1 {[%clk 0:01:46]}  Kg7 {[%clk 0:01:16]} 24. h4 {[%clk 0:01:45]}  Kf6 {[%clk 0:01:06]} 25. Bf3 {[%clk 0:01:21]}  a5 {[%clk 0:00:56]} 26. Rd6 {[%clk 0:01:18]}  Rb8 {[%clk 0:00:57]} 27. Rd8 {[%clk 0:01:18]}  Rxd8 {[%clk 0:00:54]} 28. Rxd8 {[%clk 0:01:18]}  a4 {[%clk 0:00:55]} 29. b4 {[%clk 0:01:12]}  Nd7 {[%clk 0:00:39]} 30. Be2 {[%clk 0:01:07]}  Ne5 {[%clk 0:00:38]} 31. Rd4 {[%clk 0:00:57]}  Nc6 {[%clk 0:00:37]} 32. Rd6 {[%clk 0:00:56]}  Nxb4 {[%clk 0:00:36]} 33. Rxb6 {[%clk 0:00:56]}  Nxa2 {[%clk 0:00:37]} 34. Ra6 {[%clk 0:00:53]}  Nc3 {[%clk 0:00:32]} 35. Bf1 {[%clk 0:00:53]}  Ke5 {[%clk 0:00:21]} 36. h5 {[%clk 0:00:49]}  h6 {[%clk 0:00:21]} 37. Ra8 {[%clk 0:00:47]}  Kd4 {[%clk 0:00:19]} 38. Ra5 {[%clk 0:00:41]}  Rc8 {[%clk 0:00:11]} 39. Ra7 {[%clk 0:00:38]}  Rg8 {[%clk 0:00:08]} 40. Ra5 {[%clk 0:00:29]}  Rg5 {[%clk 0:00:06]} 41. Ra7 {[%clk 0:00:26]}  e5 {[%clk 0:00:03]} 42. Rxf7 {[%clk 0:00:25]}  a3 {[%clk 0:00:02]} 43. Ra7 {[%clk 0:00:26]}  a2 {[%clk 0:00:03]} 44. Ra5 {[%clk 0:00:26]}  Rxh5 {[%clk 0:00:03]} 45. c5 {[%clk 0:00:27]}  Rg5 {[%clk 0:00:03]} 46. c6 {[%clk 0:00:27]}  Rg7 {[%clk 0:00:03]} 47. Ba6 {[%clk 0:00:19]}  Ra7 {[%clk 0:00:03]} 48. Ra3 {[%clk 0:00:12]}  Rc7 {[%clk 0:00:03]} 49. Bb7 {[%clk 0:00:11]}  Kc4 {[%clk 0:00:03]} 50. Ra8 {[%clk 0:00:08]}  Kb4 {[%clk 0:00:02]} 51. Kg2 {[%clk 0:00:07]}  Na4 {[%clk 0:00:03]} 52. Rb8 {[%clk 0:00:07]}  a1=Q {[%clk 0:00:03]} 53. Ba8+ {[%clk 0:00:07]}  Kc5 {[%clk 0:00:03]} 54. Rf8 {[%clk 0:00:06]}  Rxc6 {[%clk 0:00:04]} 55. Bxc6 {[%clk 0:00:05]}  Kxc6 {[%clk 0:00:04]} 56. Rxf5 {[%clk 0:00:05]}  Qd4 {[%clk 0:00:05]} 57. Rh5 {[%clk 0:00:05]}  Qe4+ {[%clk 0:00:05]} 58. Kg1 {[%clk 0:00:05]}  Kd5 {[%clk 0:00:05]} 59. Rxh6 {[%clk 0:00:04]}  Nc3 {[%clk 0:00:06]} 60. Rh4 {[%clk 0:00:03]}  Ne2+ {[%clk 0:00:05]} 61. Kh2 {[%clk 0:00:00]}  Qf3 {[%clk 0:00:05]} 0-1


[Site "https://www.chess.com"]